bitfinex/quotes_ETHUSD_20250913
["timestamp","ask_amount","ask_price","bid_price","bid_amount"]
[1757766857913,0.002,4721.6,4721.5,4.87962917]
[1757766861425,1.1008,4721.6,4721.5,3.63522917]
[1757766861618,1.1008,4721.6,4721.5,4.40507209]
[1757766861827,0.794,4721.6,4721.5,4.40507209]
[1757766864049,0.794,4721.6,4721.5,1.40507209]
[1757766864347,1.5902,4721.6,4721.5,3.51]
[1757766864554,2.0253,4721.6,4721.5,3.51]
[1757766866619,1.5359,4721.6,4721.3,0.001]
[1757766866823,1.5359,4721.6,4721.4,3.0]
[1757766866824,0.792,4721.5,4721.4,3.0]
[1757766867048,1.0988,4721.5,4721.4,3.0]
[1757766870134,0.002,4721.6,4721.4,3.0]
[1757766872051,0.002,4721.6,4721.4,3.4814]
[1757766872646,0.002,4721.6,4721.5,3.51]
[1757766873070,0.3088,4721.6,4721.5,3.51]
[1757766876764,0.3088,4721.6,4721.5,4.7544]
[1757766876765,0.002,4721.6,4721.5,4.7544]
[1757766877950,0.002,4721.6,4721.5,4.3038]
[1757766878148,0.002,4721.6,4721.5,3.8224]
[1757766878689,0.002,4721.6,4721.5,3.51]
[1757766878981,1.1008,4721.6,4721.5,3.51]
[1757766879156,0.8976,4721.5,4721.3,0.001]
[1757766879358,0.8976,4721.5,4721.4,6.509]
[1757766883662,0.8976,4721.5,4721.4,6.8214]
[1757766883870,0.8976,4721.5,4721.4,7.66036924]
[1757766885248,0.8976,4721.5,4721.4,8.13976924]
[1757766888368,0.8976,4721.5,4721.4,8.60726924]
[1757766889376,0.8976,4721.5,4721.4,8.60626924]
[1757766889978,0.8976,4721.5,4721.4,8.13876924]
[1757766891601,1.1946,4721.5,4721.4,7.34596924]
[1757766891896,1.1946,4721.5,4721.4,6.507]
[1757766892595,0.8976,4721.5,4721.4,6.8209]
[1757766892777,0.002,4721.6,4721.4,7.2722]
[1757766895407,0.002,4721.6,4721.4,7.90749239]
[1757766895598,0.002,4721.6,4721.5,3.0]
[1757766895799,0.002,4721.6,4721.5,4.95091924]
[1757766895989,0.002,4721.6,4721.5,5.26481924]
[1757766896313,0.794,4721.6,4721.5,7.2782]
[1757766896998,0.794,4721.6,4721.5,7.7321]
[1757766897404,0.794,4721.6,4721.5,1.2191]
[1757766897709,0.794,4721.6,4721.5,4.7331]
[1757766898796,0.794,4721.6,4721.5,5.36834666]
[1757766898995,0.794,4721.6,4721.5,8.90528133]
[1757766902215,0.002,4721.6,4721.5,8.90428133]
[1757766904225,0.002,4721.6,4721.5,5.39128133]
[1757766904429,0.002,4721.6,4721.5,8.90428133]
[1757766907126,0.002,4721.6,4721.5,8.45038133]
[1757766910354,0.002,4721.6,4721.5,7.99908133]
[1757766910714,1.091,4721.6,4721.5,3.0]
[1757766911014,1.5453,4721.6,4721.5,6.511]
[1757766911337,1.091,4721.6,4721.5,6.511]
[1757766912619,0.002,4721.6,4721.5,7.2762]
[1757766912943,0.002,4721.6,4721.5,7.7301]
[1757766913151,0.002,4721.6,4721.5,8.50321]
[1757766913625,0.002,4721.6,4721.5,8.98461]
[1757766923416,0.002,4721.6,4721.5,8.07941]
[1757766924024,0.002,4721.6,4721.5,7.76551]
[1757766924244,0.002,4721.6,4721.5,7.76851]
[1757766924450,0.2992,4721.6,4721.5,4.25451]
[1757766924656,0.7722,4721.6,4721.5,7.76851]
[1757766924930,0.2992,4721.6,4721.5,7.76851]
[1757766926838,0.2992,4721.6,4721.5,4.25451]
[1757766927037,0.2992,4721.6,4721.5,7.76751]
[1757766928473,0.002,4721.6,4721.5,7.76751]
[1757766931873,0.3012,4721.6,4721.5,7.76751]
[1757766932277,0.3012,4721.6,4721.5,7.76651]
[1757766932583,1.0932,4721.6,4721.5,6.9934]
[1757766932784,1.664,4721.6,4721.5,6.9934]
[1757766934391,1.664,4721.6,4721.5,3.4814]
[1757766934557,1.664,4721.6,4721.5,6.9934]
[1757766937956,1.664,4721.6,4721.5,6.512]
[1757766939659,1.664,4721.6,4721.5,3.0]
[1757766939855,1.664,4721.6,4721.5,6.512]
[1757766941787,1.1988,4721.6,4721.5,6.512]
[1757766944679,1.1988,4721.6,4721.5,6.511]
[1757766945877,1.6547,4721.6,4721.5,6.511]
[1757766946396,1.1988,4721.6,4721.5,6.511]
[1757766946998,1.6634,4721.6,4721.5,3.0]
[1757766947176,2.1193,4721.6,4721.5,6.511]
[1757766947375,2.1193,4721.6,4721.5,3.0]
[1757766948576,2.33843,4721.6,4721.5,3.0]
[1757766949101,1.6619,4721.6,4721.5,3.0]
[1757766951892,1.6619,4721.6,4721.3,3.511]
[1757766952205,3.84810574,4721.5,4721.3,0.001]
[1757766952611,1.0995,4721.4,4721.3,0.001]
[1757766952913,2.24430437,4721.4,4721.3,0.001]
[1757766953084,4.82542021,4721.4,4721.3,0.001]
[1757766955016,2.70740437,4721.4,4721.3,0.001]
[1757766955504,2.70740437,4721.4,4720.1,0.001]
[1757766955505,3.0,4721.2,4720.1,0.001]
[1757766955671,2.91046453,4720.4,4720.1,0.001]
[1757766955879,7.25998254,4720.4,4720.1,0.001]
[1757766956179,8.00011098,4720.4,4720.1,0.001]
[1757766956383,4.53186688,4720.4,4720.1,0.001]
[1757766956589,8.5138085,4720.4,4720.1,0.001]
[1757766957509,2.80176688,4720.4,4720.1,0.001]
[1757766957697,3.59376688,4720.4,4720.1,0.001]
[1757766957896,4.05686688,4720.4,4720.1,0.001]
[1757766958376,4.53186688,4720.4,4720.1,0.001]
[1757766964813,8.08786688,4720.4,4720.1,0.001]
[1757766965919,7.62476688,4720.4,4720.1,0.001]
[1757766966217,7.14876688,4720.4,4720.1,0.001]
[1757766967422,7.61186688,4720.4,4720.1,0.001]
[1757766969419,7.6054638,4720.4,4720.1,0.001]
[1757766969828,7.1423638,4720.4,4720.1,0.001]
[1757766971229,3.5873638,4720.4,4720.1,0.001]
[1757766971439,7.1453638,4720.4,4720.1,0.001]
[1757766971803,7.1473638,4720.4,4720.1,0.001]
[1757766975823,0.792,4719.9,4719.7,0.8498]
[1757766975999,4.348,4719.8,4719.7,0.8498]
[1757766976204,4.348,4719.8,4719.7,1.1518]
[1757766980849,6.46673384,4719.8,4719.7,1.1518]
[1757766981444,6.46673384,4719.8,4719.7,0.7961]
[1757766981844,6.46673384,4719.8,4719.7,0.302]
[1757766982148,3.01637873,4719.7,4719.6,0.001]
[1757766982938,0.8976,4719.7,4719.6,0.303]
[1757766983434,0.8976,4719.7,4719.6,1.2649]
[1757766985145,4.4486,4719.7,4719.6,1.2649]
[1757766985845,0.8976,4719.7,4719.6,1.2649]
[1757766995844,0.8976,4719.7,4719.6,0.303]
[1757766996276,0.8976,4719.7,4719.6,0.001]
[1757766996477,1.2111,4719.7,4719.6,0.001]
[1757766996685,0.8976,4719.7,4719.6,0.001]
[1757766996985,0.8976,4719.7,4719.6,0.303]
[1757766997547,0.8976,4719.7,4719.6,0.7942]
[1757767005101,0.8976,4719.7,4719.6,0.303]
[1757767007903,0.8996,4719.7,4719.6,0.303]
[1757767009412,0.002,4720.3,4719.7,30.0]
[1757767009585,0.002,4720.3,4720.2,0.3037]
[1757767009977,0.002,4720.3,4720.2,1.199]
[1757767010308,0.002,4720.3,4720.2,1.3046]
[1757767015308,0.002,4720.3,4720.2,1.199]
[1757767015783,0.002,4720.3,4720.2,1.3189]
[1757767015989,0.002,4720.8,4720.3,3.0]
[1757767016319,0.1076,4720.8,4720.3,4.20002093]
[1757767016523,0.002,4720.8,4720.7,0.3037]
[1757767016925,0.002,4720.8,4720.7,1.22018329]
[1757767017132,0.002,4720.8,4720.7,1.84573371]
[1757767018286,0.002,4720.8,4720.7,1.93015042]
[1757767023113,0.002,4720.8,4720.7,1.50145042]
[1757767023315,0.002,4720.8,4720.7,7.76218329]
[1757767023523,0.002,4720.8,4720.7,7.741]
[1757767027249,0.002,4720.8,4720.7,7.8466]
[1757767027452,0.002,4721.3,4720.7,7.8466]
[1757767027453,0.002,4721.3,4720.8,33.0]
[1757767027626,0.4758,4723.3,4721.4,3.0]
[1757767027830,0.436,4723.3,4722.0,0.3037]
[1757767028134,0.436,4723.3,4722.0,37.15442093]
[1757767028325,0.436,4723.3,4722.0,38.04972093]
[1757767028534,0.436,4723.3,4722.0,38.15545377]
[1757767028877,0.436,4723.3,4722.0,39.83036567]
[1757767029044,0.436,4723.3,4722.0,40.26636567]
[1757767029671,0.436,4723.6,4722.1,3.0]
[1757767029874,0.436,4723.6,4722.3,3.0]
[1757767030169,0.436,4723.4,4722.7,0.3037]
[1757767030355,0.436,4725.7,4722.8,30.0]
[1757767030658,0.9118,4725.6,4722.9,3.91647343]
[1757767030969,2.90832663,4725.2,4723.1,3.0]
[1757767031180,0.9118,4725.1,4723.2,0.91647208]
[1757767031473,2.08581073,4725.0,4723.4,3.0]
[1757767031661,1.2678,4725.0,4723.5,0.02117074]
[1757767031963,0.792,4724.8,4723.6,0.8953]
[1757767032182,0.792,4724.9,4723.8,3.0]
[1757767032344,0.792,4724.6,4723.8,3.0]
[1757767033062,0.792,4724.4,4723.8,3.0]
[1757767034876,0.792,4724.2,4723.8,3.0]
[1757767035173,0.436,4724.2,4723.8,3.0]
[1757767037760,0.792,4724.6,4723.8,3.0]
[1757767037761,0.2934,4723.9,4723.8,3.0]
[1757767038349,0.1056,4723.8,4723.3,1.625]
[1757767038543,1.2511,4723.8,4723.5,3.0]
[1757767038774,0.2934,4723.6,4723.3,1.625]
[1757767038975,0.1056,4723.4,4723.3,1.625]
[1757767039177,0.399,4723.4,4723.3,8.168]
[1757767039953,0.399,4723.4,4723.3,4.625]
[1757767040153,0.399,4723.4,4723.3,8.168]
[1757767040791,0.8581,4723.4,4723.3,4.625]
[1757767040978,1.312,4723.4,4723.3,8.168]
[1757767041177,0.8581,4723.4,4723.3,8.168]
[1757767043887,0.8581,4723.4,4723.3,8.167]
[1757767044096,0.8581,4723.4,4723.3,4.625]
[1757767044596,0.8581,4723.4,4723.3,8.166]
[1757767044777,0.8581,4723.4,4723.3,4.625]
[1757767044985,0.8581,4723.4,4723.3,8.166]
[1757767045184,0.399,4723.4,4723.3,8.166]
[1757767045585,0.399,4723.4,4723.3,4.625]
[1757767045787,0.399,4723.4,4723.3,8.166]
[1757767047501,0.399,4723.4,4722.8,0.001]
[1757767047502,0.792,4723.3,4722.8,0.001]
[1757767047680,0.792,4723.3,4722.9,3.541]
[1757767047884,0.792,4723.1,4723.0,3.0]
[1757767048088,1.5445,4723.1,4723.0,3.0]
[1757767048470,0.1056,4723.0,4722.8,0.001]
[1757767048694,1.3567,4723.0,4722.9,6.54]
[1757767048896,1.6501,4723.0,4722.9,6.54]
[1757767050318,1.6501,4723.0,4722.9,6.539]
[1757767050629,1.6501,4723.0,4722.9,3.0]
[1757767050917,1.6501,4723.0,4722.9,6.539]
[1757767051994,1.191,4723.0,4722.9,6.539]
[1757767052194,1.6501,4723.0,4722.9,6.539]
[1757767052589,1.191,4723.0,4722.9,6.539]
[1757767052924,1.6501,4723.0,4722.9,6.539]
[1757767053498,1.191,4723.0,4722.9,6.539]
[1757767056392,0.8976,4723.0,4722.9,6.539]
[1757767056718,0.8976,4723.0,4722.9,6.8351]
[1757767057503,0.1056,4723.0,4722.9,7.746]
[1757767058450,2.11876618,4724.2,4723.0,3.0]
[1757767058451,0.002,4724.2,4723.0,3.0]
[1757767058600,0.1056,4723.6,4723.1,4.46807253]
[1757767058909,0.1056,4723.6,4723.5,0.2961]
[1757767059104,0.1056,4723.6,4723.5,6.8341]
[1757767059320,0.1056,4723.6,4723.5,7.745]
[1757767062805,0.1076,4723.6,4723.5,7.745]
[1757767067473,0.1076,4723.6,4723.5,7.2955]
[1757767071074,0.1076,4723.6,4723.5,6.8341]
[1757767071775,0.1076,4723.6,4723.5,3.0]
[1757767071978,0.1076,4723.6,4723.5,6.532]
[1757767072536,0.3975,4723.6,4723.5,6.532]
[1757767077872,0.3975,4723.6,4723.5,3.0]
[1757767078181,0.8537,4723.6,4723.5,6.53]
[1757767079261,1.3388,4723.6,4723.5,6.53]
[1757767079578,2.1308,4723.6,4723.5,6.53]
[1757767080460,1.6457,4723.6,4723.5,6.53]
[1757767082008,0.792,4723.5,4723.3,1.624]
[1757767082175,1.2482,4723.5,4723.4,6.53]
[1757767082360,1.5381,4723.5,4723.4,6.53]
[1757767083792,1.5381,4723.5,4723.4,6.529]
[1757767084175,1.5381,4723.5,4723.4,3.0]
[1757767084389,1.5381,4723.5,4723.4,6.529]
[1757767085910,0.002,4723.6,4723.4,6.529]
[1757767086623,0.002,4723.6,4723.5,0.2871]
[1757767089420,0.1056,4723.5,4723.4,6.529]
[1757767089822,0.3955,4723.5,4723.4,6.529]
[1757767092042,0.8976,4723.5,4723.4,6.529]
[1757767092546,0.8976,4723.5,4723.4,7.2681]
[1757767093406,0.8976,4723.5,4723.4,7.7041]
[1757767094022,0.8976,4723.5,4723.4,7.2681]
[1757767094343,0.8976,4723.5,4723.4,6.8161]
[1757767095343,0.8976,4723.5,4723.4,7.2881]
[1757767096461,0.8976,4723.5,4723.4,6.8161]
[1757767097240,0.8976,4723.5,4723.4,6.529]
[1757767097436,0.8996,4723.5,4723.4,6.529]
[1757767099671,1.2044,4723.5,4723.4,6.529]
[1757767101708,1.2044,4723.5,4723.4,3.0]
[1757767101877,1.82411,4723.5,4723.4,6.525]
[1757767102870,1.2044,4723.5,4723.4,6.525]
[1757767103078,0.8996,4723.5,4723.4,6.525]
[1757767103910,0.8996,4723.5,4723.4,6.8204]
[1757767104468,0.8996,4723.5,4723.4,7.2924]
[1757767105463,0.8996,4723.5,4723.4,7.7606]
[1757767107993,0.8996,4723.5,4723.4,7.2924]
[1757767108167,0.8996,4723.5,4723.4,6.8204]
[1757767111025,0.8996,4723.5,4723.4,7.2924]
[1757767111222,0.8996,4723.5,4723.4,7.7606]
[1757767112232,0.8996,4723.5,4723.4,7.2924]
[1757767114524,0.8996,4723.5,4723.4,7.7606]
[1757767115331,0.8996,4723.5,4723.4,7.2924]
[1757767116359,0.8996,4723.5,4723.4,6.8204]
[1757767118041,0.8996,4723.5,4723.4,6.525]
[1757767123535,1.6581,4723.5,4723.4,6.525]
[1757767124662,1.2044,4723.5,4723.4,6.525]
[1757767125563,0.4124,4723.5,4723.4,6.525]
[1757767128367,0.1076,4723.5,4723.4,6.525]
[1757767128542,0.1076,4723.5,4723.4,6.519]
[1757767129269,0.1076,4723.5,4723.4,3.0]
[1757767129473,0.1076,4723.5,4723.4,6.519]
[1757767131777,0.412,4723.5,4723.4,6.519]
[1757767133575,0.1076,4723.5,4723.4,6.519]
[1757767134079,0.1076,4723.5,4723.4,3.0]
[1757767134277,0.1076,4723.5,4723.4,6.518]
[1757767135384,0.1076,4723.5,4723.4,6.8076]
[1757767135877,0.1076,4723.5,4723.4,7.7016]
[1757767136085,0.1076,4723.5,4723.4,8.175]
[1757767137376,0.1076,4723.5,4723.4,4.657]
[1757767137552,0.1076,4723.5,4723.4,8.175]
[1757767138676,0.1076,4723.5,4723.4,7.734]
[1757767138897,0.1076,4723.5,4723.4,8.175]
[1757767139885,0.1076,4723.5,4723.4,7.734]
[1757767140476,0.1076,4723.5,4723.4,8.175]
[1757767141694,0.1076,4723.5,4723.4,7.734]
[1757767142579,0.1076,4723.5,4723.4,8.175]
[1757767142888,0.1076,4723.5,4723.4,7.734]
[1757767143190,0.1076,4723.5,4723.4,8.175]
[1757767144884,0.1076,4723.5,4723.4,7.734]
[1757767145107,0.1076,4723.5,4723.4,8.175]
[1757767157929,0.1076,4723.5,4723.4,7.734]
[1757767161130,0.10311921,4723.5,4723.4,8.1636]
[1757767169544,0.10311921,4723.5,4723.4,7.734]
[1757767180285,0.10311921,4723.5,4723.4,8.1636]
[1757767181300,0.10311921,4723.5,4723.4,7.734]
[1757767182494,0.39901921,4723.5,4723.4,6.9914]
[1757767184905,0.10311921,4723.5,4723.4,6.9914]
[1757767185490,0.10311921,4723.5,4723.4,7.289]
[1757767187882,0.10311921,4723.5,4723.4,6.9914]
[1757767190714,0.39681921,4723.5,4723.4,6.9914]
[1757767192328,0.39681921,4723.5,4723.4,3.4734]
[1757767192534,0.39681921,4723.5,4723.4,6.9904]
[1757767193132,2.13391921,4723.5,4723.4,0.4734]
[1757767193432,0.792,4723.4,4723.3,0.001]
[1757767193821,2.0308,4723.4,4723.3,0.001]
[1757767194526,4.14791902,4723.4,4723.3,0.001]
[1757767194894,4.78311592,4723.4,4723.3,0.001]
[1757767200744,3.83801592,4723.4,4723.3,0.001]
[1757767200944,8.434092,4723.4,4723.3,0.001]
[1757767202856,8.927492,4723.4,4723.3,0.001]
[1757767203063,17.11428642,4729.8,4723.3,0.001]
[1757767203064,1.14369859,4726.1,4723.3,2.6808]
[1757767203236,0.39534816,4725.7,4723.6,0.792]
[1757767203421,0.08,4726.8,4725.6,0.3115]
[1757767203627,0.08,4726.8,4725.8,3.0]
[1757767203822,0.08,4726.8,4726.7,0.3115]
[1757767204037,2.11482776,4728.6,4726.7,0.3115]
[1757767204038,0.9451,4729.1,4726.8,3.0]
[1757767204357,0.11864948,4729.2,4726.9,1.35877303]
[1757767204358,0.4517,4729.2,4726.9,1.35877303]
[1757767204555,0.4517,4729.2,4727.0,3.95945506]
[1757767204556,2.5662834,4729.1,4727.0,3.95945506]
[1757767204878,2.5662834,4729.1,4727.1,0.9383]
[1757767205078,2.11461315,4729.0,4727.2,0.95945417]
[1757767205356,2.56634048,4729.0,4727.3,0.9383]
[1757767205527,2.56634048,4729.0,4727.4,0.9383]
[1757767205721,2.11467932,4728.9,4727.5,2.5623]
[1757767205975,2.11467932,4728.9,4727.7,3.0]
[1757767206146,2.11474536,4728.8,4727.6,0.4564]
[1757767206456,2.11495206,4728.3,4727.7,3.621]
[1757767206662,2.11495206,4728.3,4727.8,3.0]
[1757767206843,2.11497933,4728.2,4727.8,3.0]
[1757767207245,2.11497933,4728.2,4727.8,3.9383]
[1757767207550,0.792,4728.3,4727.8,0.9383]
[1757767208066,0.792,4728.4,4727.6,6.621]
[1757767208365,2.56667015,4728.2,4727.6,6.621]
[1757767208562,2.11501817,4728.1,4727.6,6.621]
[1757767208765,2.11501817,4728.1,4727.5,8.243]
[1757767209967,0.792,4728.2,4727.5,4.624]
[1757767210131,2.11522414,4727.7,4727.5,1.624]
[1757767210560,2.11514263,4727.9,4727.5,1.624]
[1757767210870,2.56674348,4728.1,4727.5,1.624]
[1757767210871,2.11515882,4727.8,4727.5,1.624]
[1757767211569,0.792,4727.5,4726.1,0.4819]
[1757767211754,0.792,4726.8,4726.1,0.4819]
[1757767211957,0.4517,4727.8,4726.2,0.47755864]
[1757767212165,0.792,4727.1,4726.3,0.4819]
[1757767212467,2.90746191,4727.1,4727.0,0.3115]
[1757767212671,2.90746191,4727.1,4726.4,0.4564]
[1757767212672,2.90746191,4727.1,4726.5,0.4819]
[1757767212970,2.11551457,4727.0,4726.5,0.4819]
[1757767213147,2.11559473,4726.9,4726.5,0.9383]
[1757767213535,0.1056,4726.5,4726.2,3.0]
[1757767213735,0.792,4726.7,4726.2,3.0]
[1757767213949,0.1056,4726.2,4725.7,0.4564]
[1757767214171,0.1056,4725.9,4725.8,0.4819]
[1757767214484,0.1056,4725.9,4725.8,1.2498]
[1757767214485,0.0056,4725.9,4725.8,1.2498]
[1757767215059,0.792,4726.7,4725.8,0.7934]
[1757767215383,0.792,4726.7,4725.6,3.0]
[1757767215384,2.11584366,4726.3,4725.6,3.0]
[1757767215688,0.792,4726.5,4725.7,0.916]
[1757767215890,2.90776106,4726.5,4725.7,0.916]
[1757767216185,2.11582889,4726.3,4725.7,0.916]
[1757767217881,2.11577598,4726.4,4725.7,0.916]
[1757767218090,2.9077511,4726.5,4725.7,0.916]
[1757767218293,2.11577759,4726.4,4725.7,0.916]
[1757767218455,0.792,4726.5,4725.7,0.916]
[1757767218979,2.11581738,4726.4,4725.7,0.916]
[1757767219175,2.11577522,4726.4,4725.7,0.916]
[1757767219382,6.52275669,4726.5,4725.7,0.4645]
[1757767219565,0.792,4726.2,4725.7,0.4645]
[1757767219965,0.792,4726.4,4725.7,0.4645]
[1757767220171,0.792,4726.4,4725.4,0.4515]
[1757767220371,0.792,4726.3,4725.4,0.4515]
[1757767220690,0.792,4726.3,4725.2,4.25374398]
[1757767220691,0.2861,4725.5,4725.2,0.63474398]
[1757767221001,2.5817,4726.2,4724.8,0.08]
[1757767221002,3.614,4725.8,4725.4,0.2984]
[1757767221490,2.11604694,4725.8,4725.4,1.2144]
[1757767221692,2.11609085,4725.7,4725.4,0.7629]
[1757767221894,2.11609298,4725.7,4725.4,0.7629]
[1757767222390,3.614,4725.9,4725.4,0.7629]
[1757767222589,2.11604399,4725.8,4725.4,0.2984]
[1757767224180,2.11610059,4725.7,4725.4,0.2984]
[1757767225191,5.72904212,4725.9,4725.4,0.2984]
[1757767225398,3.613,4725.9,4725.4,0.2984]
[1757767225574,2.11611184,4725.7,4725.4,0.2984]
[1757767225771,0.2895,4725.5,4724.8,0.08]
[1757767225958,0.1056,4725.4,4724.8,0.5388]
[1757767226365,0.1056,4725.4,4725.3,0.2897]
[1757767226994,0.1056,4725.4,4725.3,0.7684]
[1757767233288,0.1056,4725.4,4724.9,0.4588]
[1757767233500,0.1056,4725.4,4725.0,0.9375]
[1757767233935,0.1056,4725.4,4724.8,0.08]
[1757767233936,0.1056,4725.4,4725.1,0.9375]
[1757767234099,0.1056,4725.4,4725.1,0.4588]
[1757767234296,0.1056,4725.4,4725.2,0.4787]
[1757767234599,0.1056,4725.4,4725.3,0.2897]
[1757767235114,0.3951,4725.4,4725.3,0.001]
[1757767235295,0.8389,4725.4,4725.3,0.001]
[1757767237204,6.90332296,4725.4,4725.3,0.001]
[1757767237402,7.70712296,4725.4,4725.3,0.001]
[1757767237606,8.34190858,4725.4,4725.3,0.001]
[1757767238825,8.34390858,4725.4,4725.3,0.001]
[1757767239221,8.54116868,4725.4,4725.3,0.001]
[1757767239420,8.54416868,4725.4,4725.3,0.001]
[1757767239620,8.74142878,4725.4,4725.3,0.001]
[1757767240921,8.74149546,4725.4,4725.3,0.001]
[1757767241822,5.13664507,4725.4,4725.3,0.001]
[1757767242013,4.47363536,4725.4,4725.3,0.001]
[1757767242329,8.07663536,4725.4,4725.3,0.001]
[1757767242632,8.27404507,4725.4,4725.3,0.001]
[1757767243428,8.27404507,4725.4,4725.3,1.301]
[1757767243633,8.27404507,4725.4,4725.3,0.001]
[1757767243829,4.47363536,4725.4,4725.3,0.001]
[1757767244035,8.07563536,4725.4,4725.3,0.001]
[1757767244956,8.27308794,4725.4,4725.3,0.001]
[1757767245155,4.67108794,4725.4,4725.3,0.001]
[1757767245373,8.07563536,4725.4,4725.3,0.001]
[1757767245955,8.27309621,4725.4,4725.3,0.001]
[1757767248469,4.67109621,4725.4,4725.3,1.301]
[1757767248637,3.74033536,4725.4,4725.3,2.0802]
[1757767248837,7.33733536,4725.4,4725.3,1.6098]
[1757767249161,7.53479621,4725.4,4725.3,1.301]
[1757767249315,7.83559621,4725.4,4725.3,1.301]
[1757767249518,7.6383822,4725.4,4725.3,1.301]
[1757767249722,7.3375822,4725.4,4725.3,1.301]
[1757767249964,6.70279658,4725.4,4725.3,1.301]
[1757767250125,3.10579658,4725.4,4725.3,1.301]
[1757767250327,6.70279658,4725.4,4725.3,1.301]
[1757767251655,7.01139658,4725.4,4725.3,1.301]
[1757767252441,7.01139658,4725.4,4725.3,1.4193]
[1757767252629,3.10579658,4725.4,4725.3,1.4193]
[1757767252831,6.70079658,4725.4,4725.3,1.4193]
[1757767253737,0.98957362,4725.4,4725.3,2.1866]
[1757767253942,3.593,4725.4,4725.3,2.6544]
[1757767257086,3.593,4725.4,4725.3,2.1866]
[1757767257458,3.593,4725.4,4725.3,2.6544]
[1757767258547,3.593,4725.4,4725.3,2.1866]
[1757767258777,2.11618851,4725.5,4725.3,1.7237]
[1757767258961,3.591,4725.4,4725.3,1.7237]
[1757767259263,3.591,4725.4,4725.3,2.1866]
[1757767259459,3.591,4725.4,4725.3,1.7237]
[1757767260884,5.70722296,4725.4,4725.3,1.7237]
[1757767262112,3.591,4725.4,4725.3,1.7237]
[1757767263069,5.70722296,4725.4,4725.3,1.4193]
[1757767263674,3.591,4725.4,4725.3,1.4193]
[1757767263870,5.70722296,4725.4,4725.3,1.4193]
[1757767264453,7.26872296,4725.4,4725.3,1.4193]
[1757767264658,7.72922296,4725.4,4725.3,1.4193]
[1757767267992,7.26872296,4725.4,4725.3,1.4193]
[1757767268887,7.72922296,4725.4,4725.3,1.4193]
[1757767269090,7.92702589,4725.4,4725.3,1.4193]
[1757767270574,7.92702589,4725.4,4725.3,0.1193]
[1757767271195,8.12489535,4725.4,4725.3,0.1193]
[1757767271574,7.92702589,4725.4,4725.3,0.1193]
[1757767272174,8.12489772,4725.4,4725.3,0.1193]
[1757767272788,8.12491172,4725.4,4725.3,0.1193]
[1757767274673,8.12493187,4725.4,4725.3,0.1193]
[1757767277107,7.66443187,4725.4,4725.3,0.1193]
[1757767280009,8.15713187,4725.4,4725.3,0.1193]
[1757767281100,7.66443187,4725.4,4725.3,0.1193]
[1757767283313,7.20353187,4725.4,4725.3,0.1193]
[1757767285214,3.61253187,4725.4,4725.3,0.1193]
[1757767285406,6.98762589,4725.4,4725.3,0.1193]
[1757767285608,7.18553187,4725.4,4725.3,0.1193]
[1757767286586,7.63253187,4725.4,4725.3,0.1193]
[1757767286915,8.2439928,4725.4,4725.3,0.1193]
[1757767287131,0.792,4725.3,4724.8,0.081]
[1757767287287,0.792,4724.9,4724.8,0.081]
[1757767287619,8.79935581,4724.9,4724.8,0.081]
[1757767287993,5.22735581,4724.9,4724.8,0.081]
[1757767288199,9.24535581,4724.9,4724.8,0.081]
[1757767288403,9.73805581,4724.9,4724.8,0.081]
[1757767290387,9.24535581,4724.9,4724.8,0.081]
[1757767291188,8.79835581,4724.9,4724.8,0.081]
[1757767291392,9.24535581,4724.9,4724.8,0.081]
[1757767292104,9.73805581,4724.9,4724.8,0.081]
[1757767293132,9.24535581,4724.9,4724.8,0.081]
[1757767293596,9.24527094,4724.9,4724.8,0.081]
[1757767294102,8.79827094,4724.9,4724.8,0.081]
[1757767295906,5.22727094,4724.9,4724.8,0.081]
[1757767296135,8.49507094,4724.9,4724.8,0.081]
[1757767296405,8.79427094,4724.9,4724.8,0.081]
[1757767299238,8.79327094,4724.9,4724.8,0.081]
[1757767300042,5.22727094,4724.9,4724.8,0.081]
[1757767300342,8.79227094,4724.9,4724.8,0.081]
[1757767300741,5.22727094,4724.9,4724.8,0.081]
[1757767300920,8.79127094,4724.9,4724.8,0.081]
[1757767305737,4.92807094,4724.9,4724.8,0.3784]
[1757767305934,8.48907094,4724.9,4724.8,1.3048]
[1757767308160,8.48807094,4724.9,4724.8,1.3048]
[1757767308757,8.48814227,4724.9,4724.8,2.6048]
[1757767309264,8.48814227,4724.9,4724.8,1.3048]
[1757767309761,4.92814227,4724.9,4724.8,1.3048]
[1757767309938,8.48814227,4724.9,4724.8,1.3048]
[1757767310838,8.48814227,4724.9,4724.8,1.2999]
[1757767310839,4.92814227,4724.9,4724.8,1.2999]
[1757767311038,8.48714227,4724.9,4724.8,1.2999]
[1757767312159,8.48727968,4724.9,4724.8,1.2999]
[1757767313832,8.48727968,4724.9,4724.8,2.5999]
[1757767315444,4.92827968,4724.9,4724.8,2.5999]
[1757767315651,8.48527968,4724.9,4724.8,2.5999]
[1757767315966,8.48527968,4724.9,4724.8,2.1386]